lending/lending_fUSD_20240507
["ID","MTS","AMOUNT","RATE_DAILY","PERIOD"]
[326598395,1715123449765,-680.62,0.00024657,2]
[326598396,1715123449775,-680.62,0.00024657,2]
[326598397,1715123449784,-680.62,0.00024657,2]
[326598398,1715123449794,-680.62,0.00024657,2]
[326598399,1715123449803,-680.62,0.00024657,2]
[326598400,1715123449813,-680.62,0.00024657,2]
[326598401,1715123449822,-680.62,0.00024657,2]
[326598402,1715123449832,-680.62,0.00024657,2]
[326598403,1715123449842,-680.62,0.00024657,2]
[326598404,1715123449851,-680.62,0.00024657,2]
[326598405,1715123449860,-680.62,0.00024657,2]
[326598406,1715123449870,-680.62,0.00024657,2]
[326598407,1715123449880,-4435.31,0.00024657,2]
[326598408,1715123449890,-4435.31,0.00024657,2]
[326598409,1715123449900,-4435.31,0.00024657,2]
[326598410,1715123449910,-4435.31,0.00024657,2]
[326598411,1715123449920,-4435.31,0.00024657,2]
[326598412,1715123449931,-4435.31,0.00024657,2]
[326598413,1715123449942,-4435.31,0.00024657,2]
[326598414,1715123449953,-4435.31,0.00024657,2]
[326598415,1715123449964,-4435.31,0.00024657,2]
[326598416,1715123449977,-4435.31,0.00024657,2]
[326598417,1715123449987,-4435.31,0.00024657,2]
[326598418,1715123449997,-4435.31,0.00024657,2]
[326598419,1715123450007,-4435.31,0.00024657,2]
[326598420,1715123450019,-4435.31,0.00024657,2]
[326598421,1715123450029,-4435.31,0.00024657,2]
[326598422,1715123450040,-4435.31,0.00024657,2]
[326598423,1715123450050,-4435.31,0.00024657,2]
[326598424,1715123450060,-4435.31,0.00024657,2]
[326598425,1715123450071,-4435.31,0.00024657,2]
[326598426,1715123450081,-4435.31,0.00024657,2]
[326598427,1715123450091,-4435.31,0.00024657,2]
[326598428,1715123450101,-4435.31,0.00024657,2]
[326598429,1715123450111,-4435.31,0.00024657,2]
[326598430,1715123450122,-4435.34725894,0.00024657,2]
[326598431,1715123450131,-1501.45,0.00024657,2]
[326598432,1715123450141,-1501.45,0.00024657,2]
[326598433,1715123450151,-1501.45,0.00024657,2]
[326598434,1715123450161,-1501.45,0.00024657,2]
[326598435,1715123450175,-1501.45,0.00024657,2]
[326598436,1715123450186,-1501.45,0.00024657,2]
[326598437,1715123450196,-1501.45,0.00024657,2]
[326598438,1715123450206,-1501.45,0.00024657,2]
[326598439,1715123450218,-1501.45,0.00024657,2]
[326598440,1715123450228,-1501.45,0.00024657,2]
[326598441,1715123450238,-1501.45,0.00024657,2]
[326598442,1715123450248,-1501.45,0.00024657,2]
[326598443,1715123450262,-1501.45,0.00024657,2]
[326598444,1715123450271,-1501.45,0.00024657,2]
[326598445,1715123450281,-1501.45,0.00024657,2]
[326598446,1715123450290,-1501.45,0.00024657,2]
[326598447,1715123450300,-1501.45,0.00024657,2]
[326598448,1715123450309,-1501.45,0.00024657,2]
[326598449,1715123450319,-1501.45,0.00024657,2]
[326598450,1715123450329,-1501.45,0.00024657,2]
[326598451,1715123450338,-1501.45,0.00024657,2]
[326598452,1715123450348,-1501.45,0.00024657,2]
[326598453,1715123450359,-1501.45,0.00024657,2]
[326598454,1715123450368,-1501.62506511,0.00024657,2]
[326598455,1715123450378,-481.095294,0.00024658,7]
[326598456,1715123450388,-481.095294,0.00024658,7]
[326598457,1715123450398,-4384.43087,0.00024723,30]
[326598458,1715123450407,-150.0,0.0002473,4]
[326598459,1715123450418,-1107.85,0.00024731,2]
[326598460,1715123450428,-1415.32,0.00024739,6]
[326598461,1715123450438,-157.050805,0.00024748,2]
[326598462,1715123450448,-1013.52,0.00024765,2]
[326598463,1715123450457,-150.0,0.000248,4]
[326598464,1715123450467,-362.57,0.000248,2]
[326598465,1715123450477,-546.37,0.000248,2]
[326598466,1715123450488,-604.25,0.000248,2]
[326598467,1715123450498,-2870.95,0.000248,2]
[326598469,1715123450508,-2870.95,0.000248,2]
[326598470,1715123450518,-2870.95,0.000248,2]
[326598472,1715123450528,-150.0,0.00024805,4]
[326598474,1715123450538,-680.62,0.00024831,2]
[326598476,1715123450548,-646.21,0.00024831,2]
[326598478,1715123450558,-597.83,0.00024831,2]
[326598480,1715123450568,-742.01,0.00024831,2]
[326598482,1715123450578,-533.49,0.00024831,2]
[326598484,1715123450589,-862.44,0.00024831,2]
[326598486,1715123450599,-1443.74,0.00024831,2]
[326598488,1715123450610,-2034.57,0.00024831,2]
[326598490,1715123450619,-1140.78,0.00024831,2]
[326598492,1715123450629,-150.0,0.00024842,4]
[326598494,1715123450639,-150.0,0.00024842,4]
[326598496,1715123450650,-150.0,0.00024879,4]
[326598498,1715123450660,-199.75971536,0.0002489,2]
[326598500,1715123450670,-3000.0,0.000249,2]
[326598502,1715123450680,-2000.0,0.000249,2]
[326598504,1715123450690,-212.0,0.0002493,2]
[326598506,1715123450700,-11602.39975101,0.00024953,2]
[326598508,1715123450710,-150.0,0.00024954,4]
[326598510,1715123450720,-91989.8787666,0.00024966,2]
[326598512,1715123450729,-150.0,0.00024969,4]
[326598514,1715123450739,-2372.112184,0.00024973,2]
[326598516,1715123450749,-12887.8871319,0.00024983,2]
[326598518,1715123450760,-21055.28710178,0.0002499,2]
[326598520,1715123450769,-335.61056735,0.00025,7]
[326598522,1715123450780,-6882.11700391,0.00025,2]
[326598524,1715123450790,-2218.84407319,0.00025,2]
[326598526,1715123450800,-155.0,0.00025,2]
[326598528,1715123450809,-471.69374245,0.00025,2]
[326598530,1715123450820,-155.0,0.00025,2]
[326598532,1715123450830,-3200.0,0.00025,2]
[326598534,1715123450839,-1479.10940715,0.00025,2]
[326598536,1715123450849,-9746.61423547,0.00025,2]
[326598538,1715123450858,-160.0,0.00025,2]
[326598540,1715123450868,-10000.0,0.00025,2]
[326598542,1715123450878,-573.60323373,0.00025,7]
[326598544,1715123450887,-986.62878855,0.00025,14]
[326598546,1715123450897,-17115.5699049,0.00025,7]
[326598548,1715123450906,-36815.5286,0.00025,7]
[326598549,1715123450916,-900.0,0.00025,26]
[326598550,1715123450926,-27203.59271937,0.00025,10]
[326598551,1715123450935,-414.0,0.00025,13]
[326598552,1715123450944,-1037.70360246,0.00025,2]
[326598553,1715123450954,-298.53572696,0.00025,2]
[326598554,1715123450964,-1013.52,0.00025,2]
[326598555,1715123450977,-200.0,0.00025,2]
[326598556,1715123450986,-150.0,0.00025,4]
[326598557,1715123450996,-318.88,0.00025,2]
[326598558,1715123451006,-1107.85,0.00025005,2]
[326598559,1715123451017,-400.0,0.00025005,2]
[326598560,1715123451029,-302.54,0.00025011,2]
[326598561,1715123451039,-150.0,0.00025029,4]
[326598562,1715123451048,-150.0,0.00025104,4]
[326598563,1715123451058,-680.62,0.00025105,2]
[326598564,1715123451068,-646.21,0.00025105,2]
[326598566,1715123451077,-597.83,0.00025105,2]
[326598568,1715123451087,-742.01,0.00025105,2]
[326598570,1715123451098,-533.49,0.00025105,2]
[326598572,1715123451108,-862.44,0.00025105,2]
[326598574,1715123451119,-1443.74,0.00025105,2]
[326598576,1715123451129,-2034.57,0.00025105,2]
[326598578,1715123451140,-1140.78,0.00025105,2]
[326598580,1715123451150,-150.0,0.00025139,4]
[326598582,1715123451160,-157.050805,0.00025148,4]
[326598585,1715123451171,-150.0,0.00025179,4]
[326598587,1715123451185,-458.27528007,0.000252,4]
[326598589,1715123451195,-500.0,0.00025205,2]
[326598591,1715123451204,-500.0,0.00025205,2]
[326598593,1715123451214,-500.0,0.00025205,2]
[326598595,1715123451224,-500.0,0.00025205,2]
[326598596,1715123451234,-500.0,0.00025205,2]
[326598598,1715123451243,-500.0,0.00025205,2]
[326598600,1715123451254,-150.0,0.00025254,4]
[326598602,1715123451266,-1107.85,0.00025279,2]
[326598604,1715123451276,-150.0,0.00025309,4]
[326598606,1715123451286,-318.88,0.0002531,2]
[326598608,1715123451297,-1358.9,0.00025325,15]
[326598610,1715123451307,-150.0,0.00025329,4]
[326598612,1715123451317,-502.2365039,0.00025362,2]
[326598614,1715123451326,-159.95281396,0.00025368,2]
[326598616,1715123451336,-389.58,0.00025379,2]
[326598618,1715123451345,-289.24,0.00025379,2]
[326598620,1715123451354,-680.62,0.00025379,2]
[326598623,1715123451364,-646.21,0.00025379,2]
[326598625,1715123451375,-597.83,0.00025379,2]
[326598627,1715123451384,-742.01,0.00025379,2]
[326598629,1715123451393,-533.49,0.00025379,2]
[326598631,1715123451403,-862.44,0.00025379,2]
[326598633,1715123451413,-1443.74,0.00025379,2]
[326598635,1715123451423,-2034.57,0.00025379,2]
[326598637,1715123451433,-1140.78,0.00025379,2]
[326598639,1715123451442,-5959.0733759,0.00025383,2]
[326598641,1715123451451,-342.0,0.000254,2]
[326598643,1715123451459,-250000.0,0.000254,5]
[326598645,1715123451469,-150.0,0.000254,2]
[326598647,1715123451478,-186.0,0.000254,2]
[326598649,1715123451488,-484.0,0.000254,8]
[326598651,1715123451497,-342.0,0.000254,2]
[326598653,1715123451506,-188.0,0.000254,8]
[326598654,1715123451517,-150.0,0.00025404,4]
[326598657,1715123451526,-500.0,0.00025422,7]
[326598659,1715123451536,-157.050805,0.00025448,4]
[326598661,1715123451546,-5800.0,0.00025454,2]
[326598663,1715123451555,-5800.0,0.00025462,2]
[326598664,1715123451565,-10117.98303871,0.00025464,2]
[326598666,1715123451574,-212.0,0.0002547,2]
[326598668,1715123451583,-206.0,0.0002547,2]
[326598670,1715123451592,-5800.0,0.00025471,2]
[326598672,1715123451602,-5800.0,0.00025479,2]
[326598674,1715123451611,-16000.0,0.00025479,4]
[326598676,1715123451621,-294.84573014,0.00025479,4]
[326598678,1715123451630,-150.0,0.00025479,4]
[326598680,1715123451639,-150.0,0.00025479,4]
[326598682,1715123451649,-197.79018819,0.00025479,4]
[326598684,1715123451658,-414.0,0.000255,13]
[326598686,1715123451668,-1107.8662,0.00025553,2]
[326598688,1715123451678,-680.71280678,0.00025653,2]
[326598690,1715123451688,-646.22700592,0.00025653,2]
[326598693,1715123451698,-597.96396469,0.00025653,2]
[326598694,1715123451708,-742.11556252,0.00025653,2]
[326598696,1715123451717,-533.51142981,0.00025653,2]
[326598698,1715123451727,-862.53462407,0.00025653,2]
[326598700,1715123451742,-1443.8059952,0.00025653,2]
[326598706,1715123451788,-2034.68730765,0.00025653,2]
[326598708,1715123451798,-1140.8810563,0.00025653,2]
[326598710,1715123451807,-500.0,0.00025696,7]
[326598712,1715123451816,-362.57,0.000257,2]
[326598714,1715123451825,-546.37,0.000257,2]
[326598716,1715123451834,-604.25,0.000257,2]
[326598718,1715123451844,-598.56594166,0.00025756,2]
[326598720,1715123451853,-157.050619,0.00025798,4]
[326598722,1715123451862,-474.33,0.0002589,2]
[326598724,1715123451872,-2000.0,0.000259,2]
[326598726,1715123451881,-865.59,0.00025969,7]
[326598728,1715123451890,-910.67683273,0.0002597,2]
[326598730,1715123451900,-900.0,0.00026,27]
[326598732,1715123451909,-1000.0,0.00026,4]
[326598734,1715123451920,-500.0,0.00026,2]
[326598736,1715123451929,-15070.0,0.00026,3]
[326598738,1715123451938,-4238.73734886,0.00026,2]
[326598740,1715123451948,-500.0,0.00026,120]
[326598742,1715123451959,-414.0,0.00026,14]
[326598744,1715123451969,-11288.73170194,0.00026,2]
[326598746,1715123451981,-13059.42624043,0.00026,2]
[326598748,1715123451990,-5412.59337161,0.00026,2]
[326598750,1715123452000,-3534.72151043,0.00026,2]
[326598752,1715123452010,-5135.0878322,0.00026,2]
[326598754,1715123452020,-152.0,0.00026042,5]
[326598756,1715123452029,-300.0,0.00026055,2]
[326598758,1715123452038,-150.0,0.00026079,2]
[326598760,1715123452047,-657.35,0.000261,2]
[326598762,1715123452057,-1415.32,0.00026109,8]
[326598764,1715123452066,-157.050719,0.00026148,4]
[326598766,1715123452076,-318.88,0.00026155,2]
[326598767,1715123452085,-199.75971536,0.00026299,2]
[326598769,1715123452094,-151.0,0.00026319,2]
[326598771,1715123452103,-10117.98303871,0.00026355,2]
[326598773,1715123452113,-25737.80732894,0.000264,2]
[326598775,1715123452123,-318.88,0.00026465,2]
[326598777,1715123452132,-157.050619,0.00026498,4]
[326598779,1715123452141,-151.0,0.000265,14]
[326598781,1715123452151,-414.0,0.000265,14]
[326598783,1715123452160,-1013.52,0.0002653,2]
[326598785,1715123452173,-159.95281396,0.00026612,2]
[326598787,1715123452182,-362.57,0.000267,2]
[326598789,1715123452192,-546.37,0.000267,2]
[326598791,1715123452201,-604.25,0.000267,2]
[326598793,1715123452213,-302.0,0.00026762,4]
[326598796,1715123452223,-1013.52,0.00026765,2]
[326598797,1715123452232,-157.050619,0.00026798,8]
[326598799,1715123452242,-598.56594166,0.00026857,2]
[326598801,1715123452253,-562.0,0.000269,2]
[326598803,1715123452264,-150.0,0.00026968,2]
[326598805,1715123452274,-150.0,0.00026999,10]
[326598807,1715123452283,-150.0,0.00026999,10]
[326598810,1715123452294,-150.0,0.00026999,10]
[326598812,1715123452304,-150.0,0.00026999,10]
[326598814,1715123452313,-1741.0206567,0.00027,2]
[326598816,1715123452323,-155.0,0.00027,4]
[326598818,1715123452332,-500.0,0.00027,2]
[326598820,1715123452341,-155.51867402,0.00027,2]
[326598822,1715123452350,-314.34261267,0.00027,120]
[326598824,1715123452360,-155.21246639,0.00027,2]
[326598825,1715123452369,-900.0,0.00027,28]
[326598827,1715123452378,-10983.21632508,0.00027,2]
[326598829,1715123452387,-255260.48012186,0.00027,2]
[326598831,1715123452397,-5034.75379823,0.00027,2]
[326598833,1715123452407,-7504.09022624,0.00027,2]
[326598835,1715123452416,-1000.0,0.00027,2]
[326598837,1715123452425,-500.0,0.00027,120]
[326598839,1715123452434,-151.0,0.00027,10]
[326598841,1715123452444,-151.0,0.00027,7]
[326598843,1715123452453,-152.650521,0.00027,7]
[326598845,1715123452462,-151.0,0.00027,7]
[326598847,1715123452472,-168.658807,0.00027,7]
[326598849,1715123452481,-151.0,0.00027,7]
[326598851,1715123452490,-151.0,0.00027,7]
[326598853,1715123452500,-575.46693,0.00027,7]
[326598855,1715123452510,-575.46693,0.00027,7]
[326598857,1715123452519,-2000.0,0.00027,2]
[326598859,1715123452529,-382.926552,0.00027,7]
[326598861,1715123452538,-382.926552,0.00027,7]
[326598863,1715123452548,-414.0,0.00027,15]
[326598865,1715123452557,-151.0,0.00027,7]
[326598867,1715123452567,-481.095294,0.00027,7]
[326598869,1715123452577,-481.095294,0.00027,7]
[326598871,1715123452586,-151.0,0.00027,7]
[326598873,1715123452595,-151.0,0.00027,7]
[326598875,1715123452605,-151.0,0.00027,7]
[326598877,1715123452615,-11288.0,0.00027,2]
[326598879,1715123452624,-261.731045,0.00027,7]
[326598881,1715123452634,-151.0,0.00027,7]
[326598883,1715123452643,-270.198962,0.00027,7]
[326598884,1715123452652,-13058.0,0.00027,2]
[326598886,1715123452661,-151.0,0.00027,7]
[326598888,1715123452671,-641.252109,0.00027,7]
[326598890,1715123452681,-641.252109,0.00027,7]
[326598892,1715123452690,-5412.0,0.00027,2]
[326598894,1715123452700,-151.0,0.00027,7]
[326598896,1715123452709,-3533.0,0.00027,2]
[326598898,1715123452718,-5134.0,0.00027,2]
[326598900,1715123452728,-151.0,0.00027,7]
[326598902,1715123452737,-151.0,0.00027,7]
[326598904,1715123452747,-151.0,0.00027,7]
[326598907,1715123452757,-1182.74461,0.00027,2]
[326598909,1715123452768,-151.0,0.00027,7]
[326598911,1715123452778,-151.0,0.00027,7]
[326598912,1715123452787,-151.0,0.00027,7]
[326598915,1715123452798,-151.0,0.00027,7]
[326598916,1715123452807,-2000.0,0.0002701,2]
[326598918,1715123452816,-2000.0,0.0002702,2]
[326598919,1715123452826,-2000.0,0.0002703,2]
[326598920,1715123452835,-154.67,0.00027032,2]
[326598921,1715123452844,-2000.0,0.0002704,2]
[326598922,1715123452854,-219.87195782,0.0002705,2]
[326598923,1715123452863,-3306.556167,0.0002705,2]
[326598924,1715123452872,-1242.05,0.000271,6]
[326598925,1715123452882,-3435.06,0.00027123,2]
[326598926,1715123452891,-604.0,0.00027211,7]
[326598927,1715123452900,-10117.98303871,0.00027245,2]
[326598928,1715123452909,-1085.6,0.000273,5]
[326598929,1715123452919,-318.88,0.0002731,2]
[326598930,1715123452928,-1200.0,0.00027324,31]
[326598931,1715123452939,-150.0,0.00027396,10]
[326598932,1715123452949,-150.0,0.00027396,10]
[326598933,1715123452959,-150.0,0.00027396,10]
[326598934,1715123452969,-5000.0,0.00027397,5]
[326598935,1715123452980,-153.688041,0.00027397,7]
[326598936,1715123452991,-500.0,0.00027397,2]
[326598937,1715123453000,-463.23604832,0.00027397,2]
[326598938,1715123453010,-500.0,0.00027397,2]
[326598939,1715123453020,-500.0,0.00027397,2]
[326598940,1715123453030,-500.0,0.00027397,2]
[326598941,1715123453040,-500.0,0.00027397,2]
[326598942,1715123453049,-500.0,0.00027397,2]
[326598943,1715123453059,-300.0,0.00027397,2]
[326598944,1715123453073,-1500.0,0.00027397,2]
[326598945,1715123453083,-1500.0,0.00027397,2]
[326598946,1715123453093,-1500.0,0.00027397,2]
[326598947,1715123453102,-1500.0,0.00027397,2]
[326598948,1715123453112,-1500.0,0.00027397,2]
[326598949,1715123453121,-172.75037943,0.00027397,2]
[326598950,1715123453132,-1000.0,0.00027397,2]
[326598951,1715123453142,-1003.70797885,0.00027397,2]
[326598953,1715123453152,-2025.00126164,0.00027397,30]
[326598955,1715123453163,-151.0,0.00027397,7]
[326598957,1715123453173,-151.0,0.00027397,7]
[326598959,1715123453187,-151.0,0.00027397,7]
[326598961,1715123453199,-151.0,0.00027397,7]
[326598963,1715123453210,-79951.09,0.00027397,2]
[326598964,1715123453222,-150.0,0.00027397,2]
[326598965,1715123453233,-15802.68,0.00027397,2]
[326598966,1715123453245,-150.0,0.00027399,10]
[326598967,1715123453257,-150.0,0.00027399,10]
[326598968,1715123453271,-150.0,0.00027399,10]
[326598969,1715123453281,-1203.85811034,0.000274,2]
[326598970,1715123453292,-1203.85811034,0.000274,2]
[326598971,1715123453302,-1203.85811034,0.000274,2]
[326598972,1715123453312,-1203.85811034,0.000274,2]
[326598973,1715123453322,-1203.85811034,0.000274,2]
[326598974,1715123453332,-1203.85811034,0.000274,2]
[326598975,1715123453343,-1203.85811034,0.000274,2]
[326598976,1715123453353,-1203.85811034,0.000274,2]
[326598977,1715123453364,-1203.85811034,0.000274,2]
[326598978,1715123453374,-1203.85811034,0.000274,2]
[326598979,1715123453384,-1203.85811034,0.000274,2]
[326598980,1715123453394,-1203.85811034,0.000274,2]
[326598981,1715123453405,-1203.85811034,0.000274,2]
[326598982,1715123453415,-1203.85811034,0.000274,2]
[326598983,1715123453425,-1203.85811034,0.000274,2]
[326598984,1715123453435,-1203.85811034,0.000274,2]
[326598985,1715123453446,-1203.85811034,0.000274,2]
[326598986,1715123453456,-1203.85811034,0.000274,2]
[326598987,1715123453466,-1203.85811034,0.000274,2]
[326598988,1715123453476,-1204.35,0.000274,2]
[326598989,1715123453486,-157.050719,0.00027448,8]
[326598990,1715123453497,-1415.32,0.00027479,11]
[326598991,1715123453508,-150.0,0.00027498,10]
[326598992,1715123453521,-150.0,0.00027498,10]
[326598993,1715123453532,-150.0,0.00027498,10]
[326598994,1715123453542,-54582.19166706,0.00027499,2]
[326598995,1715123453552,-150.0,0.00027499,10]
[326598996,1715123453563,-150.0,0.00027499,10]
[326598997,1715123453573,-150.0,0.00027499,10]
[326598998,1715123453583,-188.57348326,0.000275,2]
[326598999,1715123453593,-1000.0,0.000275,2]
[326599000,1715123453603,-1255.6,0.000275,5]
[326599001,1715123453613,-1158.6,0.000275,5]
[326599002,1715123453623,-15361.19744945,0.000275,30]
[326599003,1715123453633,-414.0,0.000275,16]
[326599004,1715123453642,-7719.18,0.000275,2]
[326599005,1715123453652,-7719.18,0.000275,2]
[326599006,1715123453662,-7719.18,0.000275,2]
[326599007,1715123453672,-7719.18,0.000275,2]
[326599008,1715123453682,-7719.18,0.000275,2]
[326599009,1715123453692,-7719.18,0.000275,2]
[326599010,1715123453702,-7719.18,0.000275,2]
[326599011,1715123453712,-7719.18,0.000275,2]
[326599012,1715123453721,-7719.18,0.000275,2]
[326599013,1715123453732,-7719.18,0.000275,2]
[326599014,1715123453742,-7719.18,0.000275,2]
[326599015,1715123453751,-7719.18,0.000275,2]
[326599016,1715123453761,-7719.18,0.000275,2]
[326599017,1715123453773,-7719.18,0.000275,2]
[326599018,1715123453783,-7719.18,0.000275,2]
[326599019,1715123453792,-7719.18,0.000275,2]
[326599020,1715123453802,-7719.18,0.000275,2]
[326599021,1715123453812,-7719.18,0.000275,2]
[326599022,1715123453822,-7719.18,0.000275,2]
[326599023,1715123453832,-7719.18,0.000275,2]
[326599024,1715123453842,-400.0,0.00027506,2]
[326599025,1715123453852,-212.14847667,0.00027559,2]
[326599026,1715123453862,-150.0,0.00027561,2]
[326599027,1715123453872,-2067.23,0.000276,2]
[326599028,1715123453882,-4721.35,0.000276,2]
[326599029,1715123453892,-362.57,0.000276,2]
[326599030,1715123453902,-546.37,0.000276,2]
[326599031,1715123453912,-604.25,0.000276,2]
[326599032,1715123453922,-663.17822006,0.00027617,2]
[326599033,1715123453932,-10047.66425454,0.00027617,2]
[326599034,1715123453942,-318.88,0.0002762,2]
[326599035,1715123453951,-3000.0,0.000277,2]
[326599036,1715123453962,-199.75971536,0.00027709,2]
[326599037,1715123453974,-157.050619,0.00027798,8]
[326599038,1715123453984,-3000.0,0.000278,4]
[326599039,1715123453994,-159.95281396,0.00027855,2]
[326599040,1715123454004,-1208.0,0.000279,30]
[326599041,1715123454013,-598.56594166,0.00027957,2]
[326599042,1715123454023,-900.0,0.00028,29]
[326599043,1715123454033,-500.0,0.00028,2]
[326599044,1715123454043,-500.0,0.00028,120]
[326599045,1715123454052,-10000.72371423,0.00028,3]
[326599046,1715123454062,-24639.41512144,0.00028,2]
[326599047,1715123454072,-492.78830243,0.00028,2]
[326599048,1715123454082,-414.0,0.00028,16]
[326599049,1715123454093,-200.0,0.00028,2]
[326599050,1715123454104,-1041.35,0.00028,6]
[326599051,1715123454113,-1000.0,0.00028,120]
[326599052,1715123454123,-1321.8,0.00028,5]
[326599053,1715123454133,-400.0,0.0002807,2]
[326599054,1715123454144,-300.0,0.0002807,2]
[326599055,1715123454154,-150.0,0.00028118,2]
[326599056,1715123454165,-10117.98303871,0.00028136,2]
[326599057,1715123454181,-157.050706,0.00028148,8]
[326599058,1715123454192,-152.0,0.00028165,6]
[326599059,1715123454201,-210.62044666,0.00028218,2]
[326599060,1715123454212,-210.62044664,0.00028218,2]
[326599061,1715123454222,-1013.52,0.00028295,2]
[326599062,1715123454232,-197.46,0.00028327,120]
[326599063,1715123454243,-318.88,0.00028465,2]
[326599064,1715123454253,-157.050706,0.00028498,8]
[326599065,1715123454264,-5627.53156028,0.000285,14]
[326599066,1715123454274,-500.0,0.000285,120]
[326599067,1715123454284,-414.0,0.000285,17]
[326599068,1715123454294,-1013.52,0.0002853,2]
[326599069,1715123454303,-362.57,0.000286,2]
[326599070,1715123454314,-546.37,0.000286,2]
[326599071,1715123454324,-604.25,0.000286,2]
[326599072,1715123454334,-600.0,0.0002865,2]
[326599073,1715123454345,-210.62044664,0.00028757,2]
[326599074,1715123454356,-318.88,0.00028775,2]
[326599075,1715123454366,-157.050706,0.00028798,8]
[326599076,1715123454375,-1181.68,0.000288,6]
[326599077,1715123454385,-1138.6,0.000288,10]
[326599078,1715123454395,-150.0,0.00028839,2]
[326599079,1715123454406,-1415.32,0.00028849,13]
[326599080,1715123454416,-1000.0,0.0002895,2]
[326599081,1715123454426,-3667.47971111,0.0002895,2]
[326599082,1715123454435,-1892.5463474,0.0002898,2]
[326599083,1715123454445,-73392.4433391,0.0002898,2]
[326599084,1715123454456,-10282.3651772,0.0002898,2]
[326599085,1715123454465,-5350.0,0.0002899,29]
[326599086,1715123454475,-5350.0,0.0002899,25]
[326599087,1715123454485,-5350.0,0.0002899,26]
[326599088,1715123454495,-5350.0,0.0002899,27]
[326599089,1715123454504,-5350.0,0.0002899,28]
[326599090,1715123454516,-5350.0,0.0002899,24]
[326599091,1715123454526,-2396.0,0.0002899,19]
[326599092,1715123454536,-5350.0,0.0002899,18]
[326599093,1715123454546,-563.69488817,0.00029,2]
[326599094,1715123454555,-500000.0,0.00029,2]
[326599095,1715123454565,-7740.13808412,0.00029,2]
[326599096,1715123454575,-15000.0,0.00029,5]
[326599097,1715123454585,-900.0,0.00029,30]
[326599098,1715123454595,-30000.0,0.00029,2]
[326599099,1715123454605,-18704.35535611,0.00029,2]
[326599100,1715123454616,-154.66345452,0.00029,120]
[326599101,1715123454625,-364.0342054,0.00029,120]
[326599102,1715123454635,-151.0,0.00029,30]
[326599103,1715123454645,-569.67,0.00029,3]
[326599104,1715123454655,-151.0,0.00029,7]
[326599105,1715123454664,-151.0,0.00029,7]
[326599106,1715123454675,-151.0,0.00029,7]
[326599107,1715123454684,-575.46693,0.00029,7]
[326599108,1715123454694,-575.46693,0.00029,7]
[326599109,1715123454704,-382.926552,0.00029,7]
[326599110,1715123454714,-382.926552,0.00029,7]
[326599111,1715123454724,-414.0,0.00029,17]
[326599112,1715123454733,-481.095294,0.00029,7]
[326599113,1715123454743,-481.095294,0.00029,7]
[326599114,1715123454754,-7719.18,0.00029,2]
[326599115,1715123454764,-7719.18,0.00029,2]
[326599116,1715123454774,-7719.18,0.00029,2]
[326599117,1715123454785,-7719.18,0.00029,2]
[326599118,1715123454795,-7719.18,0.00029,2]